bitfinex/quotes_BTCUSD_20250331
["timestamp","ask_amount","ask_price","bid_price","bid_amount"]
[1743418392701,0.55466824,82211.0,82210.0,0.02662157]
[1743418393099,0.31139224,82211.0,82210.0,0.03279219]
[1743418393648,0.55466824,82211.0,82210.0,0.03279219]
[1743418396900,0.31139224,82211.0,82210.0,0.03279219]
[1743418397330,0.55466824,82211.0,82210.0,0.03279219]
[1743418398112,0.31139224,82211.0,82210.0,0.03279219]
[1743418398265,0.55466824,82211.0,82210.0,0.02662157]
[1743418398470,0.55466824,82211.0,82210.0,0.03280949]
[1743418399659,0.56683124,82211.0,82210.0,0.03280949]
[1743418399857,0.31139224,82211.0,82210.0,0.02662157]
[1743418400267,0.31139224,82211.0,82210.0,0.03280666]
[1743418400447,0.55466824,82211.0,82210.0,0.03280666]
[1743418400657,0.31139224,82211.0,82210.0,0.27608566]
[1743418400992,0.01139224,82211.0,82210.0,0.54005252]
[1743418401193,0.01239224,82211.0,82210.0,0.54005252]
[1743418403416,0.01139224,82211.0,82210.0,1.17165252]
[1743418404837,5e-08,82222.0,82221.0,0.255408]
[1743418405038,5e-08,82222.0,82221.0,3.1037008]
[1743418405263,5e-08,82222.0,82221.0,3.10978148]
[1743418409746,5e-08,82222.0,82221.0,3.12078248]
[1743418409953,0.01100086,82234.0,82233.0,0.255371]
[1743418409954,9.1e-07,82234.0,82233.0,0.255371]
[1743418410156,9.1e-07,82234.0,82233.0,2.95905402]
[1743418411014,9.1e-07,82234.0,82233.0,2.97164695]
[1743418411283,9.1e-07,82234.0,82233.0,3.12164695]
[1743418411512,9.1e-07,82234.0,82233.0,3.11105402]
[1743418412555,9.1e-07,82234.0,82233.0,3.10905402]
[1743418412824,9.1e-07,82234.0,82233.0,3.11305402]
[1743418413087,9.1e-07,82234.0,82233.0,3.10905402]
[1743418413546,9.1e-07,82234.0,82233.0,3.11405402]
[1743418415072,9.1e-07,82234.0,82233.0,3.74537402]
[1743418415691,9.1e-07,82234.0,82233.0,3.77006854]
[1743418416146,7.4e-07,82271.0,82254.0,0.318646]
[1743418416381,0.04614904,82307.0,82293.0,0.255185]
[1743418416579,0.40852286,82294.0,82293.0,0.53170886]
[1743418416863,0.40852286,82294.0,82293.0,0.53748965]
[1743418417043,0.3,82294.0,82293.0,0.53748965]
[1743418417256,0.0486,82302.0,82298.0,0.243019]
[1743418417477,0.3486,82302.0,82298.0,0.239019]
[1743418417679,0.01658667,82299.0,82298.0,0.25694842]
[1743418417895,0.01530233,82299.0,82298.0,0.25694842]
[1743418418527,0.32796883,82299.0,82298.0,0.00577942]
[1743418418715,0.32796883,82299.0,82295.0,0.243026]
[1743418418944,0.32796883,82299.0,82298.0,0.02402465]
[1743418419151,0.33196883,82299.0,82298.0,0.02402465]
[1743418419358,0.33196883,82299.0,82298.0,0.02980407]
[1743418419978,0.57498483,82299.0,82298.0,0.02980407]
[1743418420187,0.60167568,82299.0,82298.0,0.02980407]
[1743418420395,0.60167568,82299.0,82298.0,0.00577942]
[1743418420605,0.555182,82294.0,82293.0,0.00010811]
[1743418420806,0.64952285,82294.0,82293.0,0.00010811]
[1743418421437,0.64952285,82294.0,82293.0,0.02406704]
[1743418421855,0.64952285,82294.0,82293.0,0.00010811]
[1743418422272,0.66082518,82294.0,82293.0,0.00010811]
[1743418424906,0.78342904,82294.0,82293.0,0.00010811]
[1743418425105,1.9157129,82294.0,82293.0,1.1e-07]
[1743418425282,1.00066114,82294.0,82293.0,1.1e-07]
[1743418426533,0.9816329,82294.0,82293.0,1.1e-07]
[1743418427755,0.543113,82266.0,82265.0,0.0242973]
[1743418427958,0.543113,82266.0,82265.0,0.03008664]
[1743418429390,0.55441533,82266.0,82265.0,0.03008664]
[1743418429803,0.55641533,82266.0,82265.0,0.0242973]
[1743418430018,0.56570611,82266.0,82265.0,0.0242973]
[1743418431698,0.57786111,82266.0,82265.0,0.03007505]
[1743418433194,0.60649884,82266.0,82265.0,0.03007505]
[1743418433649,0.60649884,82266.0,82265.0,0.00577775]
[1743418433878,1.58264984,82266.0,82265.0,0.00577775]
[1743418434104,0.012157,82256.0,82255.0,0.02476984]
[1743418434322,0.02669785,82256.0,82255.0,0.02476984]
[1743418434544,0.56984185,82256.0,82255.0,0.02476984]
[1743418434894,0.243167,82248.0,82245.0,0.243173]
[1743418435075,0.243167,82248.0,82246.0,0.00582437]
[1743418435298,0.243163,82250.0,82246.0,0.00582437]
[1743418435525,0.243163,82250.0,82247.0,0.02386868]
[1743418435743,0.243163,82250.0,82248.0,0.00584724]
[1743418436223,0.11018766,82266.0,82248.0,0.26117224]
[1743418436224,0.01130233,82249.0,82248.0,0.26117224]
[1743418436457,0.01130233,82249.0,82248.0,0.3837761]
[1743418438970,0.01130233,82249.0,82248.0,0.3716181]
[1743418439139,0.01130233,82249.0,82248.0,0.1284511]
[1743418439539,0.01130233,82249.0,82248.0,0.3716181]
[1743418440487,0.01130233,82249.0,82248.0,0.3837761]
[1743418440724,0.01130233,82249.0,82248.0,0.4588761]
[1743418442208,0.01140233,82249.0,82248.0,0.4588761]
[1743418444248,0.0001,82249.0,82248.0,0.4588761]
[1743418444457,0.01145336,82249.0,82248.0,0.4588761]
[1743418447573,0.01145336,82249.0,82248.0,0.4598761]
[1743418449296,3.6e-07,82249.0,82248.0,0.5092761]
[1743418449490,0.012152,82286.0,82275.0,0.243087]
[1743418449699,0.243066,82283.0,82280.0,0.243071]
[1743418449902,0.012153,82284.0,82282.0,0.243066]
[1743418449903,0.24306,82284.0,82282.0,0.243066]
[1743418450104,0.4134,82290.0,82285.0,0.012152]
[1743418450312,0.4134,82290.0,82283.0,0.243062]
[1743418450313,0.243054,82286.0,82284.0,0.243057]
[1743418450512,0.243055,82286.0,82282.0,0.03654062]
[1743418450712,0.3,82286.0,82285.0,0.00584093]
[1743418450918,0.543057,82286.0,82282.0,0.03654062]
[1743418451179,0.31296737,82286.0,82282.0,0.27960562]
[1743418451330,0.01296737,82286.0,82285.0,0.255209]
[1743418451542,0.3,82286.0,82285.0,0.243057]
[1743418451742,0.543051,82288.0,82285.0,0.24889793]
[1743418451941,0.005,82286.0,82285.0,0.24889793]
[1743418452372,0.3,82287.0,82285.0,0.24889793]
[1743418452535,0.005,82286.0,82285.0,0.24389793]
[1743418453114,0.005,82286.0,82285.0,0.00584093]
[1743418453316,0.01,82286.0,82285.0,0.00584093]
[1743418453463,0.01,82286.0,82285.0,0.24889793]
[1743418453666,0.01,82286.0,82285.0,0.26104993]
[1743418454415,0.0101,82286.0,82285.0,0.26104993]
[1743418455323,0.0051,82286.0,82285.0,0.26104993]
[1743418455774,0.0081,82286.0,82285.0,0.26104993]
[1743418456188,0.0031,82286.0,82285.0,0.26104993]
[1743418456539,0.0051,82286.0,82285.0,0.26104993]
[1743418456737,0.0051,82286.0,82285.0,0.2607802]
[1743418457037,0.0051,82286.0,82285.0,0.38338406]
[1743418458530,0.0051,82286.0,82285.0,0.12817506]
[1743418458747,0.260306,82286.0,82285.0,0.0055712]
[1743418458902,0.260306,82286.0,82282.0,0.02438762]
[1743418458903,0.543063,82283.0,82282.0,0.02438762]
[1743418459104,0.543063,82283.0,82282.0,0.14699148]
[1743418459105,0.3,82283.0,82282.0,0.14699148]
[1743418459329,0.3,82283.0,82282.0,0.15278746]
[1743418459545,0.3,82283.0,82282.0,0.39585346]
[1743418459694,0.3,82283.0,82282.0,0.15278746]
[1743418460525,0.543063,82283.0,82282.0,0.15278746]
[1743418460731,0.3,82283.0,82282.0,0.15278746]
[1743418461274,0.302,82283.0,82282.0,0.15278746]
[1743418461878,0.31335539,82283.0,82282.0,0.15278746]
[1743418462415,0.55641839,82283.0,82282.0,0.15039662]
[1743418465501,0.31335539,82283.0,82282.0,0.15039662]
[1743418465725,0.55641839,82283.0,82282.0,0.15039662]
[1743418467445,0.31335539,82283.0,82282.0,0.15039662]
[1743418467663,0.31335539,82283.0,82282.0,0.39346262]
[1743418467868,0.31335539,82283.0,82282.0,0.40561562]
[1743418468282,0.31335539,82283.0,82282.0,0.48681562]
[1743418468862,0.31335539,82283.0,82282.0,0.48531562]
[1743418472075,0.31335539,82283.0,82282.0,0.63387562]
[1743418475994,0.33610452,82283.0,82282.0,0.63387562]
[1743418476993,0.31335539,82283.0,82282.0,0.63387562]
[1743418479794,0.31335539,82283.0,82282.0,0.63337562]
[1743418480959,0.31335539,82283.0,82282.0,0.62122262]
[1743418481421,0.55641839,82283.0,82282.0,0.14689662]
[1743418481623,0.56857139,82283.0,82282.0,0.02429276]
[1743418482186,0.56857139,82283.0,82282.0,0.02049276]
[1743418483190,0.56857139,82283.0,82282.0,0.01469678]
[1743418483895,0.56857139,82283.0,82282.0,0.01239678]
[1743418486477,0.60658417,82283.0,82282.0,0.01239678]
[1743418486688,0.555256,82270.0,82269.0,0.63108]
[1743418487105,0.012156,82263.0,82252.0,0.012157]
[1743418487306,0.3,82260.0,82257.0,0.00010798]
[1743418487484,0.3,82260.0,82258.0,0.36574086]
[1743418488113,0.3,82260.0,82259.0,0.237634]
[1743418488269,0.3,82260.0,82259.0,0.36023786]
[1743418488493,0.54313,82261.0,82259.0,0.12260386]
[1743418488822,0.54313,82261.0,82260.0,0.12260386]
[1743418488964,0.243131,82260.0,82259.0,0.12260386]
[1743418489167,0.25448639,82260.0,82259.0,0.14696099]
[1743418489801,0.25448639,82260.0,82259.0,0.15096099]
[1743418490209,0.26664239,82260.0,82259.0,0.14756099]
[1743418491035,0.26664239,82260.0,82259.0,0.14356099]
[1743418491472,0.26664239,82260.0,82259.0,0.14656099]
[1743418492064,0.25458639,82260.0,82259.0,0.14656099]
[1743418492791,0.25458639,82260.0,82259.0,0.15226315]
[1743418493447,0.26674239,82260.0,82259.0,0.15226315]
[1743418494817,0.26674239,82260.0,82259.0,0.14656099]
[1743418496483,0.25458639,82260.0,82259.0,0.14656099]
[1743418497124,0.25458639,82260.0,82259.0,0.1523032]
[1743418497362,0.55458639,82260.0,82259.0,0.1523032]
[1743418498420,0.543231,82260.0,82259.0,0.1523032]
[1743418499845,0.3001,82260.0,82259.0,0.3954372]
[1743418500091,0.3001,82260.0,82259.0,0.4874932]
[1743418501284,0.3001,82260.0,82259.0,0.3954372]
[1743418501537,0.3001,82260.0,82259.0,0.4075932]
[1743418501964,0.3001,82260.0,82259.0,0.3954372]
[1743418502162,0.3001,82260.0,82259.0,0.4075932]
[1743418502387,0.31146054,82260.0,82259.0,0.4075932]
[1743418504402,0.31146054,82260.0,82259.0,0.5361932]
[1743418504610,0.01146054,82260.0,82259.0,0.5361932]
[1743418505033,0.0001,82260.0,82259.0,0.5361932]
[1743418506563,0.0001,82260.0,82259.0,0.5331932]
[1743418506995,0.0001,82260.0,82259.0,0.5361932]
[1743418507537,0.0001,82260.0,82259.0,0.5401932]
[1743418507996,0.0001,82286.0,82285.0,0.255209]
[1743418508226,0.0001,82286.0,82285.0,0.37781286]
[1743418508447,0.0001,82286.0,82285.0,0.38354777]
[1743418510497,0.0021,82286.0,82285.0,0.38354777]
[1743418513673,0.3021,82286.0,82285.0,0.15324648]
[1743418514203,0.3021,82286.0,82285.0,0.16539848]
[1743418514400,0.3021,82286.0,82285.0,0.40845548]
[1743418514712,0.0021,82286.0,82285.0,0.40845548]
[1743418515763,0.0021,82286.0,82285.0,0.53915548]
[1743418516344,0.0001,82286.0,82285.0,0.54115548]
[1743418516756,0.0001,82286.0,82285.0,0.54215548]
[1743418516959,0.0001,82286.0,82285.0,0.53915548]
[1743418517283,0.0001,82286.0,82285.0,0.54215548]
[1743418518065,0.0001,82286.0,82285.0,0.54415548]
[1743418519525,0.0001,82286.0,82285.0,0.49495548]
[1743418519721,0.0001,82286.0,82285.0,0.64151548]
[1743418521138,0.0001,82286.0,82285.0,0.63669829]
[1743418525709,0.0001,82286.0,82285.0,0.55519829]
[1743418528929,0.0001,82286.0,82285.0,0.40863829]
[1743418529352,0.255306,82286.0,82285.0,0.15342929]
[1743418530085,0.6796313,82286.0,82285.0,0.01073491]
[1743418530370,0.56974985,82285.0,82284.0,0.631]
[1743418532727,0.57374985,82285.0,82284.0,0.631]
[1743418533552,0.555228,82279.0,82278.0,0.02487602]
[1743418533928,0.61866885,82279.0,82278.0,0.02487602]
[1743418534135,1.23267271,82279.0,82278.0,0.02487602]
[1743418534712,1.91845728,82279.0,82278.0,0.02487602]
[1743418534888,1.85447228,82279.0,82278.0,0.02487602]
[1743418535093,1.82981128,82279.0,82278.0,0.02487602]
[1743418535924,1.83281128,82279.0,82278.0,0.02487602]
[1743418536693,1.13209942,82279.0,82278.0,0.02487602]
[1743418536867,1.05409942,82279.0,82278.0,0.02487602]
[1743418537539,1.03506885,82279.0,82278.0,0.02487602]
[1743418537933,0.98616885,82279.0,82278.0,0.02487602]
[1743418538191,0.7164,82279.0,82278.0,0.02487602]
[1743418538402,0.971628,82279.0,82278.0,0.02487602]
[1743418538556,0.971628,82279.0,82278.0,0.02960852]
[1743418538754,0.7164,82279.0,82278.0,0.02960852]
[1743418538960,0.971628,82279.0,82278.0,0.02960852]
[1743418539351,0.7164,82279.0,82278.0,0.02487602]
[1743418539546,0.7164,82279.0,82278.0,0.26795402]
[1743418539788,0.003,82279.0,82278.0,0.63540338]
[1743418540574,0.0001,82286.0,82285.0,0.243057]
[1743418540745,0.0001,82286.0,82285.0,0.36566086]
[1743418540962,0.0001,82286.0,82285.0,0.37037037]
[1743418541367,0.0001,82286.0,82285.0,0.38252237]
[1743418542697,0.0031,82286.0,82285.0,0.38252237]
[1743418544544,0.0031,82286.0,82285.0,0.12731337]
[1743418544924,0.3031,82286.0,82285.0,0.12731337]
[1743418545157,0.28699588,82286.0,82285.0,0.37037037]
[1743418545278,0.28899588,82286.0,82285.0,0.37037037]
[1743418546557,0.28899588,82286.0,82285.0,0.38252237]
[1743418546963,0.002,82286.0,82285.0,0.38252237]
[1743418548732,0.002,82286.0,82285.0,0.38062237]
[1743418549271,0.0021,82286.0,82285.0,0.38062237]
[1743418550581,0.0021,82286.0,82285.0,0.36847037]
[1743418550828,0.245154,82286.0,82285.0,0.12541337]
[1743418551036,0.0021,82286.0,82285.0,0.12541337]
[1743418551276,0.0021,82286.0,82285.0,0.36847037]
[1743418551611,0.0021,82286.0,82285.0,0.12541337]
[1743418552178,0.245154,82286.0,82285.0,0.12541337]
[1743418552307,0.0021,82286.0,82285.0,0.12541337]
[1743418552508,0.245154,82286.0,82285.0,0.12541337]
[1743418552718,0.0021,82286.0,82285.0,0.12541337]
[1743418552920,0.257306,82286.0,82285.0,0.00470951]
[1743418553352,0.243071,82281.0,82279.0,0.14656]
[1743418553574,0.243071,82281.0,82280.0,0.12260386]
[1743418553757,0.243071,82281.0,82280.0,0.12732681]
[1743418554631,0.243067,82282.0,82280.0,0.12732681]
[1743418554839,0.243063,82284.0,82280.0,0.12732681]
[1743418555087,0.001,82281.0,82280.0,0.37039881]
[1743418555892,0.243066,82283.0,82280.0,0.37039881]
[1743418556495,0.243066,82283.0,82280.0,0.12732681]
[1743418556496,0.243068,82282.0,82280.0,0.12732681]
[1743418556694,0.26428464,82286.0,82285.0,0.255209]
[1743418556695,0.0001,82286.0,82285.0,0.255209]
[1743418556870,0.0001,82286.0,82285.0,0.38255537]
[1743418558915,0.0001,82286.0,82285.0,0.51355537]
[1743418559148,0.0021,82286.0,82285.0,0.51355537]
[1743418559789,0.0001,82286.0,82285.0,0.51355537]
[1743418560232,0.0011,82286.0,82285.0,0.51355537]
[1743418560434,0.0001,82286.0,82285.0,0.51355537]
[1743418561081,0.0001,82286.0,82285.0,0.51555537]
[1743418561682,0.0001,82286.0,82285.0,0.51655537]
[1743418562026,0.0001,82286.0,82285.0,0.51555537]
[1743418562226,0.0001,82286.0,82285.0,0.51855537]
[1743418562436,0.0001,82286.0,82285.0,0.51655537]
[1743418562859,0.0001,82286.0,82285.0,0.52055537]
[1743418563362,0.0001,82286.0,82285.0,0.66707537]
[1743418570100,0.0001,82286.0,82285.0,0.66703537]
[1743418570243,0.0001,82286.0,82285.0,0.52055537]
[1743418570432,0.0001,82286.0,82285.0,0.66703537]
[1743418571343,0.0001,82286.0,82285.0,0.52055537]
[1743418571559,0.0001,82286.0,82285.0,0.66703537]
[1743418572214,0.0001,82286.0,82285.0,1.02047537]
[1743418572450,0.0001,82286.0,82285.0,0.92389837]
[1743418572647,0.0001,82286.0,82285.0,1.16695537]
[1743418573510,0.0001,82286.0,82285.0,1.15995537]
[1743418573741,0.0001,82286.0,82285.0,1.16095537]
[1743418573935,0.0001,82286.0,82285.0,1.16195537]
[1743418575574,0.255306,82286.0,82285.0,0.90674637]
[1743418575726,0.255306,82286.0,82285.0,0.63766251]
[1743418575967,0.555306,82286.0,82285.0,0.00674251]
[1743418576175,0.555306,82286.0,82246.0,0.243171]
[1743418576176,0.012157,82251.0,82246.0,0.243171]
[1743418576390,0.012157,82257.0,82256.0,0.00010798]
[1743418576594,0.243138,82258.0,82256.0,0.00010798]
[1743418576911,0.3,82265.0,82264.0,0.255272]
[1743418577075,0.3,82265.0,82264.0,0.37787586]
[1743418577938,0.3,82272.0,82268.0,0.243105]
[1743418578144,0.7134,82279.0,82276.0,0.012154]
[1743418578338,0.3,82278.0,82276.0,0.243082]
[1743418578541,0.312152,82285.0,82278.0,0.012153]
[1743418578766,0.012152,82285.0,82279.0,0.12260386]
[1743418579261,0.3,82281.0,82279.0,0.12260386]
[1743418579399,0.543071,82281.0,82279.0,0.12260386]
[1743418579619,0.243094,82273.0,82242.0,0.15]
[1743418579792,0.312153,82279.0,82272.0,0.243094]
[1743418579994,0.312153,82279.0,82273.0,0.12260386]
[1743418579995,0.243086,82276.0,82273.0,0.12260386]
[1743418580429,0.243088,82275.0,82273.0,0.12260386]
[1743418580621,0.243086,82276.0,82273.0,0.36569486]
[1743418580839,0.01135981,82274.0,82273.0,0.12260386]
[1743418581435,0.01135981,82274.0,82273.0,0.36569686]
[1743418581638,0.01135981,82274.0,82273.0,0.37785086]
[1743418582728,0.01135981,82274.0,82273.0,0.45695086]
[1743418582937,0.3,82284.0,82283.0,0.243063]
[1743418583177,0.0001,82286.0,82285.0,0.243057]
[1743418583447,0.0001,82286.0,82285.0,0.37781286]
[1743418584062,0.01145678,82286.0,82285.0,0.37781286]
[1743418585645,0.01245678,82286.0,82285.0,0.37781286]
[1743418585846,0.01245678,82286.0,82285.0,0.40215365]
[1743418586792,0.01445678,82286.0,82285.0,0.40215365]
[1743418591743,0.01445678,82286.0,82285.0,0.47905365]
[1743418592461,0.01345678,82286.0,82285.0,0.47905365]
[1743418592684,0.0001,82286.0,82285.0,0.47905365]
[1743418592886,0.0001,82286.0,82285.0,0.48105365]
[1743418593166,0.0001,82286.0,82285.0,0.47905365]
[1743418593421,0.0001,82286.0,82285.0,0.48205365]
[1743418593617,0.0001,82286.0,82285.0,0.48505365]
[1743418593752,0.0001,82286.0,82285.0,0.48205365]
[1743418594780,0.0001,82286.0,82285.0,0.48405365]
[1743418594988,0.0001,82286.0,82285.0,0.49005365]
[1743418596592,0.0001,82286.0,82285.0,0.89865365]
[1743418599910,0.0001,82286.0,82285.0,1.04509365]
[1743418601363,0.0001,82286.0,82285.0,1.03909365]
[1743418601514,0.0001,82286.0,82285.0,1.04509365]
[1743418601918,0.0001,82286.0,82285.0,1.67601365]
[1743418602325,0.0001,82286.0,82285.0,1.26741365]
[1743418603403,0.0001,82286.0,82285.0,1.26241365]
[1743418603624,0.0001,82286.0,82285.0,1.26741365]
[1743418605186,0.0001,82286.0,82285.0,1.12097365]
[1743418605390,0.0001,82286.0,82285.0,1.26741365]
[1743418607128,0.0141,82286.0,82285.0,1.26741365]
[1743418609733,0.0141,82286.0,82285.0,1.12097365]
[1743418609933,0.0141,82286.0,82285.0,1.19047365]
[1743418610144,0.0141,82286.0,82285.0,1.04407365]
[1743418610340,0.0141,82286.0,82285.0,0.78886465]
[1743418610540,0.0141,82286.0,82285.0,1.18547365]
[1743418610861,0.03684309,82286.0,82285.0,1.17947365]
[1743418611313,0.04821487,82286.0,82285.0,1.18347365]
[1743418611494,0.04821487,82286.0,82285.0,1.18847365]
[1743418611891,0.04821487,82286.0,82285.0,1.18447365]
[1743418612103,0.04821487,82286.0,82285.0,1.17947365]
[1743418613240,0.04821487,82286.0,82285.0,1.18047365]
[1743418613440,0.02547178,82286.0,82285.0,1.18147365]
[1743418614287,0.02547178,82286.0,82285.0,1.26197365]
[1743418617724,0.04824524,82286.0,82285.0,1.26197365]
[1743418622639,0.03687346,82286.0,82285.0,1.26197365]
[1743418623061,0.04826916,82286.0,82285.0,1.26197365]
[1743418623376,0.04826916,82286.0,82285.0,1.11557365]
[1743418623606,0.04826916,82286.0,82285.0,1.03507365]
[1743418623783,0.04826916,82286.0,82285.0,1.18147365]
[1743418624290,0.04826916,82286.0,82285.0,0.77986465]
[1743418625433,0.04826916,82286.0,82285.0,1.02292165]
[1743418625876,0.04826916,82286.0,82285.0,1.03507365]
[1743418626255,0.04826916,82286.0,82285.0,1.02292165]
[1743418627378,0.04826916,82286.0,82285.0,1.03507365]
[1743418633849,0.04826916,82286.0,82285.0,0.77986465]
[1743418634049,0.29132316,82286.0,82285.0,0.77986465]
[1743418634554,0.29132316,82286.0,82285.0,0.65726079]
[1743418634773,0.30347516,82286.0,82285.0,0.65726079]
[1743418635532,0.60347516,82286.0,82285.0,0.63292]
[1743418635729,0.68367516,82286.0,82285.0,0.63292]
[1743418636252,0.68367516,82286.0,82285.0,0.63192]
[1743418636452,0.68367516,82286.0,82285.0,0.63092]
[1743418636658,0.42846916,82286.0,82285.0,0.63092]
[1743418636897,0.34826916,82286.0,82285.0,1.00973286]
[1743418637032,0.04826916,82286.0,82285.0,1.00973286]
[1743418637228,0.05026916,82286.0,82285.0,1.00873286]
[1743418637666,0.05126916,82286.0,82285.0,1.00873286]
[1743418638880,0.0284957,82286.0,82285.0,1.00873286]
[1743418639496,0.0274957,82286.0,82285.0,1.00873286]
[1743418639820,0.0284957,82286.0,82285.0,1.00873286]
[1743418640008,0.0264957,82286.0,82285.0,1.00873286]
[1743418640761,0.0254957,82286.0,82285.0,1.00873286]
[1743418641461,0.0254957,82286.0,82285.0,1.00973286]
[1743418642904,0.0254957,82286.0,82285.0,1.15609286]
[1743418643133,0.2807017,82286.0,82285.0,0.75452386]
[1743418643307,0.2807017,82286.0,82285.0,0.63192]
[1743418643710,0.3259017,82286.0,82285.0,0.63192]
[1743418644168,0.3259017,82286.0,82285.0,0.63092]
[1743418644399,0.3269017,82286.0,82285.0,0.63092]
[1743418644753,0.2695497,82286.0,82285.0,0.63092]
[1743418644973,0.2705497,82286.0,82285.0,0.63092]
[1743418645380,0.2827017,82286.0,82285.0,0.63092]
[1743418645835,0.2695497,82286.0,82285.0,0.63092]
[1743418646040,0.2705497,82286.0,82285.0,0.63092]
[1743418646284,0.2827017,82286.0,82285.0,0.63092]
[1743418647890,0.30547591,82286.0,82285.0,0.63092]
[1743418648306,0.60547591,82286.0,82285.0,0.63092]
[1743418649847,0.543057,82285.0,82284.0,0.02399465]
[1743418650278,0.3,82285.0,82284.0,0.40181151]
[1743418650832,0.0113957,82285.0,82284.0,0.38965851]
[1743418651036,0.3123957,82285.0,82284.0,0.38965851]
[1743418651568,0.33516991,82285.0,82284.0,0.38965851]
[1743418652648,0.03516991,82285.0,82284.0,0.38965851]
[1743418653926,0.27822691,82285.0,82284.0,0.14659851]
[1743418655057,0.71298277,82285.0,82284.0,0.14659851]
[1743418655214,0.71298277,82285.0,82284.0,0.02399465]
[1743418655401,0.76158277,82285.0,82284.0,0.02399465]
[1743418655815,0.243086,82276.0,82273.0,0.243092]
[1743418655997,0.243086,82276.0,82274.0,0.12260386]
[1743418656193,0.243086,82276.0,82275.0,0.02404576]
[1743418656399,0.243086,82276.0,82275.0,0.14664962]
[1743418657228,0.26586021,82276.0,82275.0,0.14664962]
[1743418657827,0.27725591,82276.0,82275.0,0.14664962]
[1743418658030,0.27825591,82276.0,82275.0,0.14664962]
[1743418658206,0.27825591,82276.0,82275.0,0.02404576]
[1743418658976,0.03516991,82276.0,82275.0,0.02404576]
[1743418659207,0.04616745,82276.0,82275.0,0.38973662]
[1743418659430,0.04616745,82276.0,82275.0,0.14664962]
[1743418659601,0.28925145,82276.0,82275.0,0.14664962]
[1743418659804,0.29025145,82276.0,82275.0,0.14664962]
[1743418660408,0.28925145,82276.0,82275.0,0.14664962]
[1743418660563,0.29025145,82276.0,82275.0,0.14664962]
[1743418661390,0.29025145,82276.0,82275.0,0.02404576]
[1743418661391,0.30240545,82276.0,82275.0,0.02404576]
[1743418661603,0.29025145,82276.0,82275.0,0.02404576]
[1743418662865,0.04716745,82276.0,82275.0,0.02404576]
[1743418663215,0.29025145,82276.0,82275.0,0.02404576]
[1743418666396,0.30240545,82276.0,82275.0,0.02404576]
[1743418667883,0.36887591,82276.0,82275.0,0.02404576]
[1743418668549,0.30240545,82276.0,82275.0,0.02404576]
[1743418669149,0.60240545,82276.0,82275.0,0.02404576]
[1743418671703,0.243116,82266.0,82262.0,0.14636]
[1743418672066,0.26589121,82265.0,82263.0,0.12260386]
[1743418672633,0.02277421,82265.0,82263.0,0.36572586]
[1743418672837,0.0113957,82264.0,82263.0,0.36572586]
[1743418673220,0.03416991,82264.0,82263.0,0.36572586]
[1743418673425,0.03416991,82264.0,82263.0,0.40199571]
[1743418673703,0.03416991,82264.0,82263.0,0.40399571]
[1743418675257,0.03416991,82264.0,82263.0,0.40599571]
[1743418675591,0.03416991,82264.0,82263.0,0.40399571]
[1743418676275,0.03416991,82264.0,82263.0,0.40699571]
[1743418676915,0.0113957,82264.0,82263.0,0.40699571]
[1743418677144,0.0113957,82264.0,82263.0,0.39483971]
[1743418677278,0.03418687,82264.0,82263.0,0.39483971]
[1743418677479,0.03418687,82264.0,82263.0,0.40699571]
[1743418681883,0.03418687,82264.0,82263.0,0.48209571]
[1743418682299,0.03418687,82264.0,82263.0,0.52729571]
[1743418683317,0.0113957,82264.0,82263.0,0.52729571]
[1743418683878,7e-07,82264.0,82263.0,0.52729571]
[1743418684075,7e-07,82264.0,82263.0,0.52529571]
[1743418684485,7e-07,82264.0,82263.0,0.52429571]
[1743418684688,7e-07,82264.0,82263.0,0.52729571]
[1743418685074,0.3,82295.0,82285.0,0.255209]
[1743418685271,0.01121432,82287.0,82285.0,0.37781286]
[1743418687870,0.0368761,82286.0,82285.0,0.37781286]
[1743418688049,0.0408761,82286.0,82285.0,0.40235671]
[1743418689332,0.0368761,82286.0,82285.0,0.40235671]
[1743418689670,0.0388761,82286.0,82285.0,0.40235671]
[1743418696841,0.0502534,82286.0,82285.0,0.14714771]
[1743418697017,0.0502534,82286.0,82285.0,0.39020471]
[1743418697437,0.0502534,82286.0,82285.0,0.40235671]
[1743418697637,0.0502534,82286.0,82285.0,0.14714771]
[1743418697942,0.0502534,82286.0,82285.0,0.39020471]
[1743418698210,0.0502534,82286.0,82285.0,0.40235671]
[1743418703391,0.0502534,82286.0,82285.0,0.14714771]
[1743418703585,0.0502534,82286.0,82285.0,0.40235671]
[1743418705592,0.08667511,82286.0,82285.0,0.40235671]
[1743418706703,0.0502534,82286.0,82285.0,0.40235671]
[1743418707279,0.0502534,82286.0,82285.0,0.14714771]
[1743418707816,0.0502534,82286.0,82285.0,0.39020471]
[1743418708319,0.0502534,82286.0,82285.0,0.14714771]
[1743418708905,0.0502534,82286.0,82285.0,0.40235671]
[1743418709086,0.08671506,82286.0,82285.0,0.40235671]
[1743418709291,0.08671506,82286.0,82285.0,0.14714771]
[1743418709872,0.08671506,82286.0,82285.0,0.39020471]
[1743418710627,0.32976906,82286.0,82285.0,0.14714771]
[1743418711173,0.08671506,82286.0,82285.0,0.14714771]
[1743418711512,0.08671506,82286.0,82285.0,0.40235671]
[1743418712379,0.08671506,82286.0,82285.0,0.14714771]
[1743418712591,0.2933074,82286.0,82285.0,0.14714771]
[1743418712742,0.0502534,82286.0,82285.0,0.39020471]
[1743418713167,0.0502534,82286.0,82285.0,0.14714771]
[1743418713373,0.0502534,82286.0,82285.0,0.39020471]
[1743418714769,0.0502534,82286.0,82285.0,0.14714771]
[1743418715170,0.0502534,82286.0,82285.0,0.39020471]
[1743418717033,0.0502534,82286.0,82285.0,0.14714771]
[1743418717249,0.2933074,82286.0,82285.0,0.14714771]
[1743418717445,0.3054594,82286.0,82285.0,0.14714771]
[1743418717755,0.2933074,82286.0,82285.0,0.14714771]
[1743418719544,0.3054594,82286.0,82285.0,0.14714771]
[1743418719736,0.3054594,82286.0,82285.0,0.02454385]
[1743418719917,0.243067,82282.0,82279.0,0.24022695]
[1743418720096,0.243067,82282.0,82279.0,0.36283081]
[1743418720437,0.243067,82282.0,82281.0,0.02405446]
[1743418721289,0.2668431,82282.0,82281.0,0.02405446]
[1743418721712,0.2772204,82282.0,82281.0,0.02405446]
[1743418721868,0.2782204,82282.0,82281.0,0.02405446]
[1743418722984,0.71883459,82282.0,82281.0,0.02405446]
[1743418723165,0.555244,82274.0,82273.0,0.63104]
[1743418723555,0.555244,82274.0,82273.0,0.65530871]
[1743418723968,0.5780201,82274.0,82273.0,0.02426871]
[1743418724217,0.71278756,82274.0,82273.0,0.02426871]
[1743418724793,0.75077845,82274.0,82273.0,0.02426871]